fUST/lending_fUST_20250810
["ID","MTS","AMOUNT","RATE_DAILY","PERIOD"]
[378179431,1754767844233,-155.2313519,0.00023753,2]
[378179432,1754767844241,-500.0,0.00023753,2]
[378179433,1754767844251,-500.0,0.00023753,2]
[378179434,1754767844260,-500.0,0.00023753,2]
[378179435,1754767844270,-160.01729465,0.00023753,2]
[378179436,1754767844279,-500.0,0.00023753,2]
[378179437,1754767844288,-500.0,0.000238,2]
[378179438,1754767844298,-500.0,0.000238,2]
[378179439,1754767844307,-1000.0,0.00023812,2]
[378179440,1754767844316,-153.742248,0.00023846,14]
[378179441,1754767844326,-153.742248,0.00023858,3]
[378179442,1754767844335,-150.0,0.00023859,2]
[378179443,1754767844344,-419.62,0.00023978,3]
[378179444,1754767844353,-460.0,0.00023987,2]
[378179445,1754767844363,-626.11,0.00023987,2]
[378179446,1754767844372,-638.24,0.00023987,2]
[378179447,1754767844381,-781.44,0.00023987,2]
[378179448,1754767844390,-460.0,0.00023987,2]
[378179449,1754767844399,-460.0,0.00023987,2]
[378179450,1754767844408,-141.29252591,0.00023987,2]
[378179452,1754767844830,-460.0,0.0002207,2]
[378179453,1754767844839,-318.70747409,0.00023987,2]
[378179454,1754767844848,-795.1,0.00023987,2]
[378179455,1754767844857,-460.0,0.00023987,2]
[378179456,1754767844867,-566.51,0.00023987,2]
[378179457,1754767844876,-483.17,0.00023988,2]
[378179458,1754767844885,-460.0,0.00023988,2]
[378179459,1754767844894,-460.0,0.00023988,2]
[378179460,1754767844904,-1423.93,0.00023988,2]
[378179461,1754767844913,-475.03,0.00023988,2]
[378179462,1754767844923,-460.0,0.00023988,2]
[378179463,1754767844931,-329.9927509,0.00023988,2]
[378179470,1754767855565,5000.0,0.00021512,2]
[378179471,1754767870700,5000.0,0.00021512,2]
[378179472,1754767885867,562.11322761,0.00021512,2]
[378179473,1754767885889,4437.88677239,0.00021512,2]
[378179474,1754767901681,5000.0,0.00021512,2]
[378179476,1754767918269,5000.0,0.00021512,2]
[378179477,1754767918506,5562.11322761,0.000199,2]
[378179478,1754767918530,3192.11786173,0.000199,2]
[378179479,1754767933414,2519.3619688,0.00021421,2]
[378179480,1754767933515,5000.0,0.00021512,2]
[378179481,1754767949220,4532.21191929,0.00021512,2]
[378179482,1754767966041,4756.30825018,0.00020739,2]
[378179483,1754767966072,5243.69174982,0.00020739,2]
[378179484,1754767987632,1244.27434881,0.00021163,2]
[378179485,1754768066732,179.65122183,0.0002142,2]
[378179486,1754768111962,435.20286329,0.00020875,2]
[378179487,1754768112261,217.60143165,0.00021004,2]
[378179488,1754768112682,8832.22278811,0.000199,2]
[378179489,1754768141907,454.49048934,0.00021421,2]
[378179490,1754768162640,3392.86510715,0.00020596,2]
[378179491,1754768162662,20000.0,0.00020596,2]
[378179492,1754768162684,20000.0,0.00020596,2]
[378179493,1754768162704,20000.0,0.00020596,2]
[378179494,1754768162725,4554.78029935,0.00020596,2]
[378179495,1754768194766,170.501277,0.00020727,2]
[378179496,1754768195154,170.501277,0.00020727,120]
[378179497,1754768249519,3882.2937367,0.00020588,2]
[378179498,1754768270885,226.47885849,0.00021422,2]
[378179499,1754768280458,11165.94582846,0.00020621,2]
[378179500,1754768280481,13734.05417154,0.00020621,2]
[378179503,1754768288812,829.51623254,0.00021099,2]
[378179504,1754768316643,250.0,0.00020332,2]
[378179505,1754768318658,5186.42959592,0.000199,2]
[378179506,1754768318682,4511.35971791,0.000199,2]
[378179508,1754768330124,758.632443,0.00013699,2]
[378179509,1754768330331,758.632443,0.00020187,2]
[378179510,1754768335814,590.78323472,0.00021421,2]
[378179511,1754768376817,165.982389,0.00020586,2]
[378179512,1754768377234,165.982389,0.00020637,2]
[378179513,1754768377454,165.982389,0.00020688,2]
[378179514,1754768377777,165.982389,0.0002074,2]
[378179515,1754768377869,165.982389,0.00020791,2]
[378179516,1754768406621,150.98590566,0.00021421,2]
[378179517,1754768413526,174.08114532,0.00020875,2]
[378179518,1754768464045,12225.61316539,0.00020771,2]
[378179519,1754768464075,1084.40688181,0.00020771,2]
[378179520,1754768509295,9366.6432702,0.000199,2]
[378179521,1754768526132,516.93533038,0.00021421,2]
[378179523,1754768590291,553.01082169,0.00021163,2]
[378179525,1754768625612,511.779427,0.00020584,2]
[378179526,1754768654752,15243.6855651,0.00020538,2]
[378179527,1754768708077,1036.3433222,0.00020558,2]
[378179528,1754768712103,209.4144809,0.00020558,2]
[378179529,1754768716610,9054.42182786,0.000199,2]
[378179530,1754768717078,553.12726654,0.00021421,2]
[378179531,1754768725475,3814.4939868,0.00020563,2]
[378179532,1754768796841,619.018489,0.00020558,2]
[378179533,1754768848314,666.0,0.00020558,2]
[378179534,1754768891892,368.67388113,0.000189,2]
[378179535,1754768903361,8751.88707065,0.000199,2]
[378179536,1754768906911,483.98635817,0.0002142,2]
[378179544,1754768951604,3735.7925242,0.00020562,2]
[378179545,1754768959625,1000.0,0.00020562,2]
[378179592,1754769032184,-265.66113027,0.00021515,5]
[378179594,1754769032194,-1200.0,0.00021518,2]
[378179596,1754769032204,-300.0,0.00021518,2]
[378179598,1754769032214,-300.0,0.00021518,2]
[378179600,1754769032224,-1200.0,0.00021518,2]
[378179602,1754769032234,-2436.0,0.00021519,2]
[378179603,1754769032244,-460.0,0.00021519,2]
[378179605,1754769032255,-460.0,0.00021519,2]
[378179607,1754769032264,-460.0,0.00021519,2]
[378179609,1754769032273,-460.0,0.00021519,2]
[378179611,1754769032284,-187.99020838,0.00021519,2]
[378179612,1754769032294,-460.0,0.0002152,2]
[378179614,1754769032304,-461.3491597,0.0002152,2]
[378179616,1754769032314,-460.0,0.0002152,2]
[378179618,1754769032323,-429.80950165,0.0002152,2]
[378179619,1754769032336,-30.19049835,0.0002152,2]
[378179621,1754769032345,-460.0,0.0002152,2]
[378179623,1754769032356,-460.0,0.0002152,2]
[378179625,1754769032365,-460.0,0.0002152,2]
[378179627,1754769032373,-460.0,0.0002152,2]
[378179629,1754769032382,-330.9657822,0.0002152,2]
[378179631,1754769032392,-386.9119156,0.0002152,2]
[378179633,1754769032404,-92.87713413,0.0002152,2]
[378179635,1754769032414,-460.0,0.0002152,2]
[378179637,1754769032425,-161.38893628,0.0002152,2]
[378179646,1754769032495,-298.61106372,0.0002152,2]
[378179648,1754769032507,-460.0,0.0002152,2]
[378179650,1754769032518,-460.0,0.0002152,2]
[378179652,1754769032528,-460.0,0.0002152,2]
[378179654,1754769032540,-460.0,0.0002152,2]
[378179656,1754769032550,-692.51,0.0002152,2]
[378179658,1754769032560,-464.28852248,0.0002152,2]
[378179660,1754769032570,-460.0,0.0002152,2]
[378179662,1754769032581,-540.7,0.0002152,2]
[378179664,1754769032591,-357.1399445,0.0002152,2]
[378179775,1754769037828,-102.8600555,0.0002152,2]
[378179777,1754769037838,-460.0,0.0002152,2]
[378179779,1754769037847,-206.85879942,0.0002152,2]
[378179781,1754769037857,-460.0,0.0002152,2]
[378179783,1754769037866,-460.0,0.0002152,2]
[378179785,1754769037875,-460.0,0.0002152,2]
[378179787,1754769037884,-460.0,0.0002152,2]
[378179789,1754769037893,-139.28503622,0.0002152,2]
[378179848,1754769040024,-320.71496378,0.0002152,2]
[378179849,1754769040033,-460.0,0.0002152,2]
[378179850,1754769040043,-460.0,0.0002152,2]
[378179851,1754769040052,-705.21,0.0002152,2]
[378179852,1754769040061,-460.0,0.0002152,2]
[378179853,1754769040071,-460.0,0.0002152,2]
[378179854,1754769040082,-460.0,0.0002152,2]
[378179855,1754769040091,-460.0,0.0002152,2]
[378179856,1754769040101,-1669.84,0.0002152,2]
[378179857,1754769040111,-460.0,0.0002152,2]
[378179858,1754769040120,-590.52,0.0002152,2]
[378179859,1754769040130,-460.0,0.0002152,2]
[378179860,1754769040139,-460.0,0.0002152,2]
[378179861,1754769040149,-460.0,0.0002152,2]
[378179862,1754769040158,-460.0,0.0002152,2]
[378179863,1754769040168,-460.0,0.0002152,2]
[378179864,1754769040178,-460.0,0.0002152,2]
[378179865,1754769040187,-460.0,0.0002152,2]
[378179866,1754769040196,-460.0,0.0002152,2]
[378179867,1754769040206,-460.0,0.0002152,2]
[378179868,1754769040215,-460.0,0.0002152,2]
[378179869,1754769040225,-485.63,0.0002152,2]
[378179870,1754769040234,-460.0,0.0002152,2]
[378179871,1754769040243,-460.0,0.0002152,2]
[378179872,1754769040252,-460.0,0.0002152,2]
[378179873,1754769040262,-460.0,0.0002152,2]
[378179874,1754769040271,-460.0,0.0002152,2]
[378179875,1754769040281,-460.0,0.0002152,2]
[378179876,1754769040291,-460.0,0.0002152,2]
[378179877,1754769040300,-460.0,0.0002152,2]
[378179878,1754769040310,-498.35,0.0002152,2]
[378179879,1754769040319,-460.0,0.0002152,2]
[378179880,1754769040328,-460.0,0.0002152,2]
[378179881,1754769040338,-460.0,0.0002152,2]
[378179882,1754769040347,-460.0,0.0002152,2]
[378179883,1754769040356,-698.91,0.0002152,2]
[378179884,1754769040366,-460.0,0.0002152,2]
[378179885,1754769040375,-400.00806473,0.0002152,2]
[378179886,1754769040386,-59.99193527,0.0002152,2]
[378179887,1754769040396,-460.0,0.0002152,2]
[378179888,1754769040405,-200.64327929,0.0002152,2]
[378179889,1754769040416,-259.35672071,0.0002152,2]
[378179890,1754769040425,-204.86025078,0.0002152,2]
[378179899,1754769042960,-264.21740183,0.0002152,2]
[378179901,1754769042970,-460.0,0.0002152,2]
[378179902,1754769042979,-460.0,0.0002152,2]
[378179903,1754769042989,-125.38719595,0.0002152,2]
[378179919,1754769046062,-334.61280405,0.0002152,2]
[378179920,1754769046071,-460.0,0.0002152,2]
[378179921,1754769046080,-460.0,0.0002152,2]
[378179922,1754769046089,-574.65236095,0.0002152,2]
[378179923,1754769046098,-460.0,0.0002152,2]
[378179924,1754769046108,-460.0,0.0002152,2]
[378179925,1754769046117,-460.0,0.0002152,2]
[378179926,1754769046127,-495.36,0.0002152,2]
[378179927,1754769046136,-460.0,0.0002152,2]
[378179928,1754769046145,-460.0,0.0002152,2]
[378179930,1754769046154,-460.0,0.0002152,2]
[378179931,1754769046163,-260.44879975,0.0002152,2]
[378179933,1754769046172,-460.0,0.0002152,2]
[378179934,1754769046181,-460.0,0.0002152,2]
[378179935,1754769046191,-460.0,0.0002152,2]
[378179936,1754769046199,-460.0,0.0002152,2]
[378179937,1754769046208,-460.0,0.0002152,2]
[378179938,1754769046218,-460.0,0.0002152,2]
[378179939,1754769046227,-460.0,0.0002152,2]
[378179940,1754769046238,-460.0,0.0002152,2]
[378179941,1754769046247,-460.0,0.0002152,2]
[378179942,1754769046256,-460.0,0.0002152,2]
[378179943,1754769046265,-460.0,0.0002152,2]
[378179944,1754769046274,-460.0,0.0002152,2]
[378179945,1754769046284,-460.0,0.00021521,2]
[378179946,1754769046293,-460.0,0.00021521,2]
[378179947,1754769046303,-460.0,0.00021521,2]
[378179948,1754769046312,-384.5772253,0.00021521,2]
[378179949,1754769046717,-75.4227747,0.00021521,2]
[378179950,1754769046727,-460.0,0.00021521,2]
[378179951,1754769046736,-460.0,0.00021521,2]
[378179952,1754769046746,-460.0,0.00021521,2]
[378179953,1754769046756,-460.0,0.00021521,2]
[378179954,1754769046765,-460.0,0.00021521,2]
[378179955,1754769046774,-460.0,0.00021521,2]
[378179956,1754769046783,-460.0,0.00021521,2]
[378179957,1754769046792,-460.0,0.00021521,2]
[378179958,1754769046802,-460.0,0.00021521,2]
[378179959,1754769046812,-460.0,0.00021521,2]
[378179960,1754769046821,-460.0,0.00021521,2]
[378179961,1754769046830,-460.0,0.00021521,2]
[378179962,1754769046840,-464.83461222,0.00021521,2]
[378179963,1754769046849,-460.0,0.00021521,2]
[378179964,1754769046858,-312.86335288,0.00021521,2]
[378179965,1754769074710,10000.0,0.00020689,2]
[378179966,1754769103583,7621.96118943,0.000199,2]
[378179967,1754769114358,423.48806339,0.00021421,2]
[378179968,1754769126261,3578.5219016,0.00020691,2]
[378179969,1754769193508,245.78258742,0.0001942,2]
[378179970,1754769215301,24900.0,0.0002056,2]
[378179971,1754769254866,601.62,0.00021511,10]
[378179972,1754769265299,501.35,0.00021511,10]
[378179973,1754769276565,649.47,0.00021511,10]
[378179974,1754769288437,541.23,0.00021511,10]
[378179975,1754769290231,7367.89581642,0.000199,2]
[378179976,1754769299696,451.02,0.00021511,10]
[378179977,1754769311644,375.85,0.00021511,10]
[378179978,1754769313626,586.1589932,0.00027962,30]
[378179979,1754769314080,160.4004305,0.00027962,30]
[378179980,1754769319381,500.0,0.00021508,2]
[378179981,1754769319804,370.55205551,0.00021419,2]
[378179982,1754769320461,500.0,0.00021508,2]
[378179983,1754769321078,500.0,0.00021508,2]
[378179984,1754769321748,500.0,0.00021508,2]
[378179985,1754769322923,500.0,0.00021508,2]
[378179986,1754769323060,433.54,0.0002151,10]
[378179987,1754769323537,500.0,0.00021508,2]
[378179988,1754769324205,500.0,0.00021508,2]
[378179989,1754769324809,500.0,0.00021508,2]
[378179990,1754769325486,500.0,0.00021508,2]
[378179991,1754769326123,500.0,0.00021508,2]
[378179992,1754769326813,557.53155746,0.00021508,2]
[378179993,1754769331916,253.58044705,0.00021508,2]
[378179994,1754769333572,361.28,0.0002151,10]
[378179995,1754769344479,682.769198,0.00013699,2]
[378179996,1754769344738,682.769198,0.00020187,2]
[378179997,1754769345738,301.07,0.0002151,10]
[378179999,1754769357606,250.89,0.0002151,10]
[378180000,1754769368263,209.07,0.0002151,10]
[378180001,1754769378891,174.23,0.0002151,10]
[378180002,1754769390242,871.16,0.0002151,10]
[378180003,1754769436793,248.8246342,0.00027962,30]
[378180004,1754769437749,518.26136396,0.00031594,30]
[378180005,1754769475135,7031.58212933,0.000199,2]
[378180006,1754769494833,163.85505828,0.0001942,2]
[378180007,1754769528087,324.23304858,0.00021419,2]
[378180008,1754769571115,2400.9951595,0.00020685,2]
[378180009,1754769628510,2216.69695722,0.00021421,2]
[378180010,1754769648773,6797.19605813,0.000199,2]
[378180011,1754769684397,409.423541,0.0002052,2]
[378180012,1754769707851,24404.2748889,0.0002142,2]
[378180013,1754769735952,283.70391749,0.00021419,2]
[378180098,1754769795018,309.509245,0.0002052,2]
[378180099,1754769796285,150.0,0.0001942,2]
[378180139,1754769832119,6570.62285626,0.000199,2]
[378180140,1754769841924,527.84,0.0002151,3]
[378180141,1754769852721,263.92,0.0002151,3]
[378180142,1754769863318,791.78,0.0002151,3]
[378180143,1754769867027,5096.67325247,0.00021419,2]
[378180144,1754769933381,1000.0,0.0002052,2]
[378180145,1754769951252,248.24092783,0.00021419,2]
[378180146,1754769969457,1773.3575658,0.0002142,2]
[378180147,1754770011254,6351.60209452,0.000199,2]
[378180148,1754770031087,10000.0,0.00020521,2]
[378180158,1754770097505,150.0,0.00019408,2]
[378180159,1754770100733,666.0,0.0002052,2]
[378180161,1754770200346,217.21081179,0.00021419,2]
[378180162,1754770220984,6136.9494865,0.000199,2]
[378180202,1754770232234,-352.11,0.00021516,2]
[378180209,1754770232288,-847.89,0.00021516,2]
[378180210,1754770232298,-1200.0,0.00021517,2]
[378180213,1754770232308,-352.11,0.00021518,2]
[378180214,1754770232318,-379.86854724,0.00021518,2]
[378180216,1754770232328,-272.10095031,0.00021518,2]
[378180217,1754770232337,-422.75656817,0.00021518,2]
[378180220,1754770232347,-45372.79222693,0.00021519,2]
[378180222,1754770232356,-460.0,0.00021519,2]
[378180224,1754770232366,-460.0,0.00021519,2]
[378180227,1754770232375,-460.0,0.00021519,2]
[378180229,1754770232384,-460.0,0.00021519,2]
[378180231,1754770232394,-460.0,0.00021519,2]
[378180233,1754770232403,-460.0,0.00021519,2]
[378180235,1754770232412,-460.0,0.00021519,2]
[378180237,1754770232423,-460.0,0.00021519,2]
[378180239,1754770232432,-460.0,0.00021519,2]
[378180241,1754770232442,-460.0,0.00021519,2]
[378180243,1754770232451,-460.0,0.00021519,2]
[378180245,1754770232460,-470.98085751,0.00021519,2]
[378180246,1754770232469,-460.0,0.00021519,2]
[378180248,1754770232479,-460.0,0.00021519,2]
[378180251,1754770232490,-460.0,0.00021519,2]
[378180253,1754770232499,-460.0,0.00021519,2]
[378180255,1754770232508,-460.0,0.00021519,2]
[378180257,1754770232518,-460.0,0.00021519,2]
[378180259,1754770232529,-460.0,0.00021519,2]
[378180261,1754770232538,-460.0,0.00021519,2]
[378180262,1754770232549,-460.0,0.00021519,2]
[378180265,1754770232558,-460.0,0.00021519,2]
[378180266,1754770232568,-460.0,0.00021519,2]
[378180269,1754770232578,-460.0,0.00021519,2]
[378180270,1754770232588,-460.0,0.00021519,2]
[378180272,1754770232599,-460.0,0.00021519,2]
[378180275,1754770232608,-460.0,0.00021519,2]
[378180277,1754770232618,-460.0,0.00021519,2]
[378180278,1754770232628,-460.0,0.00021519,2]
[378180280,1754770232637,-460.0,0.00021519,2]
[378180282,1754770232648,-460.0,0.00021519,2]
[378180283,1754770232657,-467.04971687,0.00021519,2]
[378180285,1754770232667,-460.0,0.00021519,2]
[378180287,1754770232679,-460.0,0.00021519,2]
[378180289,1754770232688,-460.0,0.00021519,2]
[378180291,1754770232699,-460.0,0.00021519,2]
[378180293,1754770232709,-460.0,0.00021519,2]
[378180295,1754770232718,-460.0,0.00021519,2]
[378180297,1754770232727,-460.0,0.00021519,2]
[378180299,1754770232736,-460.0,0.00021519,2]
[378180301,1754770232746,-466.83496548,0.00021519,2]
[378180303,1754770232755,-460.0,0.00021519,2]
[378180305,1754770232765,-460.0,0.00021519,2]
[378180307,1754770232774,-460.0,0.00021519,2]
[378180309,1754770232783,-460.0,0.00021519,2]
[378180311,1754770232792,-460.0,0.00021519,2]
[378180313,1754770232803,-460.0,0.00021519,2]
[378180315,1754770232812,-460.0,0.00021519,2]
[378180316,1754770232823,-513.85,0.00021519,2]
[378180318,1754770232832,-500.0,0.00021519,2]
[378180320,1754770232842,-460.0,0.00021519,2]
[378180322,1754770232854,-465.77240923,0.00021519,2]
[378180324,1754770232864,-460.0,0.00021519,2]
[378180326,1754770232873,-460.0,0.00021519,2]
[378180327,1754770232885,-460.0,0.00021519,2]
[378180329,1754770232895,-1172.68,0.00021519,2]
[378180331,1754770232904,-574.07,0.00021519,2]
[378180334,1754770232914,-460.0,0.00021519,2]
[378180336,1754770232927,-460.0,0.00021519,2]
[378180338,1754770232937,-460.0,0.00021519,2]
[378180340,1754770232946,-460.0,0.00021519,2]
[378180342,1754770232955,-820.72,0.00021519,2]
[378180344,1754770232965,-460.0,0.00021519,2]
[378180346,1754770232974,-460.0,0.00021519,2]
[378180348,1754770232983,-460.0,0.00021519,2]
[378180350,1754770232993,-287.47810663,0.00021519,2]
[378180352,1754770233004,-460.0,0.00021519,2]
[378180354,1754770233013,-460.0,0.00021519,2]
[378180356,1754770233022,-256.50739915,0.00021519,2]
[378180358,1754770233033,-460.0,0.00021519,2]
[378180360,1754770233042,-1205.7,0.00021519,2]
[378180362,1754770233052,-1102.89,0.00021519,2]
[378180364,1754770233062,-460.0,0.00021519,2]
[378180366,1754770233072,-752.66,0.00021519,2]
[378180368,1754770233082,-963.29,0.00021519,2]
[378180370,1754770233091,-460.0,0.00021519,2]
[378180372,1754770233101,-460.0,0.00021519,2]
[378180374,1754770233110,-460.0,0.00021519,2]
[378180376,1754770233120,-500.0,0.00021519,2]
[378180378,1754770233130,-460.0,0.00021519,2]
[378180380,1754770233141,-460.0,0.00021519,2]
[378180382,1754770233150,-460.0,0.00021519,2]
[378180384,1754770233161,-460.0,0.00021519,2]
[378180386,1754770233176,-466.41311887,0.00021519,2]
[378180388,1754770233186,-460.0,0.00021519,2]
[378180390,1754770233197,-460.0,0.00021519,2]
[378180392,1754770233207,-460.0,0.00021519,2]
[378180394,1754770233216,-460.0,0.00021519,2]
[378180396,1754770233227,-460.0,0.00021519,2]
[378180398,1754770233237,-460.0,0.00021519,2]
[378180400,1754770233247,-460.0,0.00021519,2]
[378180402,1754770233257,-460.0,0.00021519,2]
[378180404,1754770233267,-460.0,0.00021519,2]
[378180406,1754770233277,-460.0,0.00021519,2]
[378180408,1754770233288,-460.0,0.00021519,2]
[378180410,1754770233297,-2847.63,0.00021519,2]
[378180412,1754770233308,-460.0,0.00021519,2]
[378180414,1754770233317,-460.0,0.00021519,2]
[378180416,1754770233327,-460.0,0.00021519,2]
[378180418,1754770233337,-460.0,0.00021519,2]
[378180420,1754770233348,-460.0,0.00021519,2]
[378180422,1754770233362,-1150.37,0.00021519,2]
[378180424,1754770233372,-460.0,0.00021519,2]
[378180426,1754770233384,-293.80265538,0.00021519,2]
[378180428,1754770233394,-461.76388655,0.00021519,2]
[378180430,1754770233404,-460.0,0.00021519,2]
[378180432,1754770233414,-460.0,0.00021519,2]
[378180434,1754770233427,-460.0,0.00021519,2]
[378180436,1754770233435,-460.0,0.00021519,2]
[378180438,1754770233445,-460.0,0.00021519,2]
[378180440,1754770233454,-460.0,0.00021519,2]
[378180442,1754770233464,-670.8,0.00021519,2]
[378180444,1754770233475,-460.0,0.00021519,2]
[378180446,1754770233484,-460.0,0.00021519,2]
[378180448,1754770233495,-460.0,0.00021519,2]
[378180450,1754770233505,-460.0,0.00021519,2]
[378180452,1754770233515,-460.0,0.00021519,2]
[378180454,1754770233524,-460.0,0.00021519,2]
[378180456,1754770233534,-460.0,0.00021519,2]
[378180458,1754770233544,-502.11640325,0.00021519,2]
[378180460,1754770233553,-257.60219491,0.00021519,2]
[378180462,1754770233563,-460.0,0.00021519,2]
[378180464,1754770233574,-460.0,0.00021519,2]
[378180466,1754770233583,-320.58533044,0.00021519,2]
[378180503,1754770238147,-139.41466956,0.00021519,2]
[378180504,1754770238156,-460.0,0.00021519,2]
[378180505,1754770238165,-460.0,0.00021519,2]
[378180506,1754770238178,-460.0,0.00021519,2]
[378180507,1754770238191,-460.0,0.00021519,2]
[378180508,1754770238200,-460.0,0.00021519,2]
[378180509,1754770238210,-716.0,0.00021519,2]
[378180510,1754770238219,-460.0,0.00021519,2]
[378180511,1754770238228,-460.0,0.00021519,2]
[378180512,1754770238238,-460.0,0.00021519,2]
[378180513,1754770238248,-460.0,0.00021519,2]
[378180514,1754770238258,-460.0,0.00021519,2]
[378180515,1754770238267,-460.0,0.00021519,2]
[378180516,1754770238277,-460.0,0.00021519,2]
[378180517,1754770238287,-460.0,0.00021519,2]
[378180518,1754770238310,-536.95,0.00021519,2]
[378180519,1754770238323,-460.0,0.00021519,2]
[378180520,1754770238333,-904.7,0.00021519,2]
[378180521,1754770238343,-460.0,0.00021519,2]
[378180522,1754770238353,-460.0,0.00021519,2]
[378180523,1754770238363,-460.0,0.00021519,2]
[378180524,1754770238372,-460.0,0.00021519,2]
[378180525,1754770238382,-465.5345339,0.00021519,2]
[378180526,1754770238391,-460.0,0.00021519,2]
[378180527,1754770238401,-637.14,0.00021519,2]
[378180528,1754770238411,-196.00574076,0.00021519,2]
[378180529,1754770238421,-460.0,0.00021519,2]
[378180530,1754770238435,-460.0,0.00021519,2]
[378180531,1754770238446,-460.0,0.00021519,2]
[378180532,1754770238455,-460.0,0.00021519,2]
[378180533,1754770238465,-897.77,0.00021519,2]
[378180534,1754770238475,-460.0,0.00021519,2]
[378180535,1754770238696,-460.0,0.00021519,2]
[378180536,1754770238706,-460.0,0.00021519,2]
[378180537,1754770238716,-460.0,0.00021519,2]
[378180538,1754770238726,-460.0,0.00021519,2]
[378180539,1754770238736,-460.0,0.00021519,2]
[378180540,1754770238746,-460.0,0.00021519,2]
[378180541,1754770238755,-460.0,0.00021519,2]
[378180542,1754770238764,-460.0,0.00021519,2]
[378180543,1754770238775,-460.0,0.00021519,2]
[378180544,1754770238784,-460.0,0.00021519,2]
[378180545,1754770238795,-460.0,0.00021519,2]
[378180546,1754770238808,-762.34,0.00021519,2]
[378180547,1754770238817,-460.0,0.00021519,2]
[378180548,1754770238828,-1201.96,0.00021519,2]
[378180549,1754770238838,-460.0,0.00021519,2]
[378180550,1754770238850,-466.07650036,0.0002152,2]
[378180551,1754770238860,-545.08978256,0.0002152,2]
[378180552,1754770238870,-460.0,0.0002152,2]
[378180553,1754770238881,-460.0,0.0002152,2]
[378180554,1754770238892,-460.0,0.0002152,2]
[378180555,1754770238903,-609.87045912,0.0002152,2]
[378180556,1754770238914,-200.0,0.0002152,10]
[378180557,1754770238929,-200.0,0.0002152,10]
[378180558,1754770238941,-460.0,0.0002152,2]
[378180559,1754770238952,-200.0,0.0002152,10]
[378180560,1754770238964,-460.0,0.0002152,2]
[378180561,1754770238974,-460.0,0.0002152,2]
[378180562,1754770238986,-460.0,0.0002152,2]
[378180563,1754770238999,-460.0,0.0002152,2]
[378180564,1754770239010,-460.0,0.0002152,2]
[378180565,1754770239021,-460.0,0.0002152,2]
[378180566,1754770239032,-460.0,0.0002152,2]
[378180567,1754770239042,-460.0,0.0002152,2]
[378180568,1754770239052,-464.45463627,0.0002152,2]
[378180569,1754770239063,-460.0,0.0002152,2]
[378180570,1754770239072,-500.0,0.0002152,2]
[378180571,1754770239083,-460.0,0.0002152,2]
[378180572,1754770239092,-486.31870009,0.0002152,2]
[378180573,1754770239103,-460.0,0.0002152,2]
[378180574,1754770239114,-460.0,0.0002152,2]
[378180575,1754770239124,-460.0,0.0002152,2]
[378180576,1754770239134,-460.0,0.0002152,2]
[378180577,1754770239145,-460.0,0.0002152,2]